bitfinex/quotes_SOLUSD_20250912
["timestamp","ask_amount","ask_price","bid_price","bid_amount"]
[1757688299987,0.68,239.3,239.28,0.03]
[1757688300189,4.17868037,239.31,239.28,0.03]
[1757688300586,4.85868037,239.31,239.28,0.03]
[1757688300793,15.3053813,239.31,239.28,0.03]
[1757688301698,4.17833117,239.33,239.28,0.03]
[1757688301903,4.17798203,239.35,239.29,0.66]
[1757688302112,14.62293711,239.35,239.29,0.66]
[1757688302294,14.62293711,239.35,239.28,0.03]
[1757688302295,0.68,239.34,239.28,0.03]
[1757688302492,2.54910383,239.31,239.28,0.03]
[1757688302686,0.68,239.34,239.28,0.03]
[1757688302888,3.22910383,239.3,239.28,0.03]
[1757688303178,0.68,239.3,239.28,0.03]
[1757688303375,33.92,239.32,239.28,0.03]
[1757688303602,0.68,239.3,239.28,0.03]
[1757688304391,4.17833117,239.33,239.29,0.66]
[1757688304602,4.17833117,239.33,239.3,0.66]
[1757688304796,0.06,239.35,239.3,0.66]
[1757688304797,14.62376752,239.34,239.3,0.66]
[1757688305178,4.17815659,239.34,239.31,0.66]
[1757688305380,0.06,239.35,239.32,0.66]
[1757688305691,0.06,239.38,239.32,0.66]
[1757688305886,0.06,239.38,239.33,13.59559401]
[1757688306074,0.06,239.38,239.35,13.59559401]
[1757688306502,0.06,239.38,239.36,0.66]
[1757688306794,0.06,239.38,239.37,4.17763295]
[1757688307000,0.06,239.38,239.37,17.77322696]
[1757688307178,0.06,239.38,239.37,18.43322696]
[1757688307379,0.06,239.38,239.37,14.25559401]
[1757688307876,0.06,239.38,239.37,0.66]
[1757688310679,0.06,239.38,239.37,40.25559401]
[1757688311189,0.06,239.38,239.37,40.6733573]
[1757688311887,0.06,239.38,239.37,40.25559401]
[1757688312402,0.06,239.38,239.37,44.43322696]
[1757688312705,0.06,239.38,239.37,40.25559401]
[1757688313604,0.06,239.38,239.37,44.43322696]
[1757688313900,0.06,239.38,239.37,48.60984561]
[1757688316607,0.78,239.49,239.37,48.60984561]
[1757688316608,0.1,239.49,239.46,13.59559401]
[1757688316811,0.1,239.49,239.48,39.59559401]
[1757688317313,0.1,239.49,239.48,44.43130805]
[1757688317896,0.1,239.49,239.48,44.24089786]
[1757688318110,0.1,239.49,239.48,80.9566119]
[1757688318414,0.1,239.49,239.48,81.6166119]
[1757688321411,0.1,239.49,239.48,81.5566119]
[1757688321631,0.1,239.49,239.48,43.58089786]
[1757688321788,0.1,239.49,239.48,37.14530385]
[1757688321987,0.1,239.49,239.46,13.59559401]
[1757688322320,0.1,239.49,239.48,13.59559401]
[1757688323110,0.16,239.49,239.48,18.43130805]
[1757688323406,0.16,239.49,239.48,17.77130805]
[1757688325013,0.16,239.49,239.48,50.91130805]
[1757688325224,0.16,239.49,239.48,50.87130805]
[1757688325517,0.16,239.49,239.48,54.8566119]
[1757688327501,0.16,239.49,239.48,55.5266119]
[1757688327715,0.16,239.49,239.48,54.8566119]
[1757688331134,0.16,239.49,239.48,55.5266119]
[1757688331607,0.16,239.49,239.48,54.8566119]
[1757688332703,0.16,239.49,239.48,47.7566119]
[1757688332906,0.16,239.49,239.48,54.8566119]
[1757688334135,0.16,239.49,239.48,50.68089786]
[1757688334305,0.16,239.49,239.48,54.8566119]
[1757688335942,0.88,239.49,239.48,17.58089786]
[1757688336116,0.88,239.49,239.48,46.69559401]
[1757688336315,0.88,239.49,239.48,13.59559401]
[1757688336516,0.88,239.49,239.48,46.69559401]
[1757688336816,0.88,239.49,239.48,59.21559401]
[1757688339433,0.88,239.49,239.48,63.39130805]
[1757688339623,0.16,239.49,239.48,63.39130805]
[1757688340335,0.16,239.49,239.48,59.21559401]
[1757688340517,0.16,239.49,239.48,63.39130805]
[1757688341320,0.88,239.49,239.48,63.39130805]
[1757688342146,0.88,239.49,239.48,46.69559401]
[1757688342624,0.16,239.49,239.48,50.87130805]
[1757688342825,0.16,239.49,239.48,64.06130805]
[1757688343032,0.16,239.49,239.48,63.39130805]
[1757688343411,0.16,239.49,239.48,64.06130805]
[1757688343613,0.16,239.49,239.48,65.73100103]
[1757688347022,1e-08,239.49,239.48,65.73100103]
[1757688347239,0.06,239.52,239.51,26.11559401]
[1757688347428,0.16,239.59,239.58,52.11559401]
[1757688347617,0.16,239.59,239.58,85.63299112]
[1757688347935,0.16,239.59,239.58,89.38956512]
[1757688348526,0.16,239.59,239.58,91.05856142]
[1757688349318,0.16,239.59,239.58,57.95856142]
[1757688349517,0.16,239.59,239.58,89.36956512]
[1757688350637,0.16,239.59,239.58,90.03956512]
[1757688350828,0.16,239.59,239.58,56.28956512]
[1757688351018,0.16,239.59,239.58,89.40956512]
[1757688351638,0.16,239.59,239.58,90.07956512]
[1757688351840,0.16,239.59,239.58,89.40956512]
[1757688352146,0.16,239.59,239.58,56.28956512]
[1757688352320,0.16,239.59,239.58,89.44956512]
[1757688352651,0.06,239.62,239.61,26.0]
[1757688352938,0.06,239.62,239.61,59.69293886]
[1757688353439,0.06,239.62,239.61,60.36293886]
[1757688354544,0.06,239.62,239.61,64.53638738]
[1757688355621,0.06,239.62,239.61,30.70638738]
[1757688355842,0.06,239.62,239.61,63.84638738]
[1757688356347,0.06,239.62,239.61,30.70638738]
[1757688356518,0.71,239.62,239.61,63.42904253]
[1757688356714,0.71,239.62,239.61,17.76904253]
[1757688356920,0.71,239.62,239.61,50.88904253]
[1757688359358,0.71,239.62,239.61,46.71559401]
[1757688359530,0.06,239.62,239.61,47.11293886]
[1757688359715,0.06,239.62,239.61,51.28638738]
[1757688360121,0.71,239.62,239.61,51.28638738]
[1757688360323,0.06,239.62,239.61,51.28638738]
[1757688361017,0.06,239.62,239.61,50.86904253]
[1757688361422,0.06,239.62,239.61,64.47638738]
[1757688361619,1e-08,239.62,239.61,64.47638738]
[1757688362223,1e-08,239.62,239.61,66.14496596]
[1757688362431,1e-08,239.62,239.61,32.37496596]
[1757688363044,0.65000001,239.62,239.61,28.20151744]
[1757688363228,0.65000001,239.62,239.61,48.34417259]
[1757688363430,0.65000001,239.62,239.61,46.67559401]
[1757688363634,0.65000001,239.62,239.56,4.17423765]
[1757688363837,0.65,239.61,239.57,33.08]
[1757688364032,0.65,239.6,239.58,13.59559401]
[1757688364347,1e-08,239.62,239.61,26.0]
[1757688364735,0.65000001,239.62,239.61,26.0]
[1757688369253,0.65000001,239.62,239.61,59.08]
[1757688370638,4.63530386,239.62,239.61,26.0]
[1757688370833,4.63530386,239.62,239.52,12.52]
[1757688370834,4.63530386,239.62,239.6,33.08]
[1757688371052,0.65,239.61,239.59,33.08]
[1757688371355,1e-08,239.62,239.61,26.0]
[1757688371856,0.65000001,239.62,239.61,26.0]
[1757688372650,0.65000001,239.62,239.58,59.08]
[1757688372857,0.65,239.61,239.58,59.08]
[1757688373049,0.65,239.6,239.58,59.08]
[1757688373474,0.65,239.59,239.58,59.08]
[1757688373776,0.65,239.61,239.58,63.25397111]
[1757688374866,0.65,239.6,239.58,59.08]
[1757688375169,0.65,239.6,239.59,59.08]
[1757688376577,1e-08,239.62,239.6,13.59559401]
[1757688376777,1e-08,239.62,239.61,33.08]
[1757688376954,1e-08,239.62,239.61,37.25344852]
[1757688377673,1e-08,239.62,239.61,118.15344852]
[1757688378676,1e-08,239.62,239.61,144.15344852]
[1757688379283,1e-08,239.62,239.61,111.07344852]
[1757688379454,1e-08,239.62,239.61,144.15344852]
[1757688379774,1e-08,239.62,239.61,132.41904253]
[1757688380369,0.06,239.65,239.64,94.435594]
[1757688380561,0.06,239.65,239.64,127.515594]
[1757688381060,0.06,239.65,239.64,131.68852005]
[1757688381265,0.06,239.65,239.64,51.51852006]
[1757688381457,0.06,239.65,239.64,263.75852005]
[1757688381651,0.06,239.65,239.64,263.08852005]
[1757688382849,0.06,239.65,239.64,263.75852005]
[1757688383297,0.06,239.65,239.64,230.00852005]
[1757688383452,0.06,239.65,239.64,263.08852005]
[1757688384359,0.06,239.65,239.64,231.67716824]
[1757688384767,0.71,239.65,239.64,263.08852005]
[1757688385074,0.06,239.65,239.64,263.08852005]
[1757688386559,0.76,239.68,239.66,80.77999999]
[1757688386765,0.76,239.68,239.67,33.06]
[1757688386766,0.06,239.68,239.67,33.06]
[1757688387358,0.76,239.68,239.67,33.06]
[1757688387978,0.76,239.68,239.66,80.77999999]
[1757688388188,3.24724082,239.67,239.66,80.77999999]
[1757688389657,0.7,239.67,239.66,80.77999999]
[1757688391377,0.06,239.68,239.66,113.83999999]
[1757688391676,0.06,239.68,239.66,118.01256752]
[1757688392079,0.06,239.68,239.67,13.59559401]
[1757688392979,0.06,239.68,239.67,46.65559401]
[1757688393573,0.06,239.68,239.67,50.82799773]
[1757688394379,0.76,239.68,239.67,13.59559401]
[1757688394568,0.76,239.68,239.67,33.06]
[1757688395779,0.76,239.68,239.66,26.0]
[1757688396086,0.7,239.67,239.66,26.0]
[1757688396379,0.7,239.67,239.66,59.06]
[1757688397973,0.7,239.67,239.66,26.0]
[1757688398176,0.7,239.67,239.66,59.06]
[1757688401396,0.7,239.67,239.66,139.83999999]
[1757688402061,0.7,239.67,239.66,106.77999999]
[1757688402259,0.7,239.67,239.66,139.83999999]
[1757688404792,0.06,239.68,239.66,139.83999999]
[1757688404979,0.76,239.68,239.66,139.83999999]
[1757688406191,0.06,239.68,239.66,144.67254484]
[1757688406372,0.06,239.68,239.66,139.83999999]
[1757688406889,0.06,239.68,239.66,144.01247906]
[1757688408365,0.06,239.68,239.67,37.21240372]
[1757688408768,0.06,239.68,239.67,50.80799773]
[1757688409267,0.06,239.68,239.67,51.46799773]
[1757688410280,0.06,239.68,239.67,50.80799773]
[1757688412192,0.06,239.68,239.67,17.76799773]
[1757688412387,0.06,239.68,239.67,50.80799773]
[1757688412896,0.06,239.68,239.67,229.94799772]
[1757688413076,0.06,239.68,239.67,262.98799772]
[1757688413398,0.06,239.68,239.67,229.94799772]
[1757688413574,0.06,239.68,239.67,262.98799772]
[1757688415598,0.06,239.68,239.67,264.6565763]
[1757688416179,0.06,239.68,239.67,133.2565763]
[1757688419080,0.06,239.68,239.67,100.2165763]
[1757688419287,0.06,239.68,239.67,133.2565763]
[1757688419888,0.06,239.68,239.67,133.9265763]
[1757688420095,0.06,239.68,239.67,133.2565763]
[1757688420896,0.06,239.68,239.67,100.2165763]
[1757688421098,0.06,239.68,239.67,133.2365763]
[1757688421903,0.06,239.68,239.67,133.9065763]
[1757688422999,0.06,239.71,239.7,94.215594]
[1757688423188,0.06,239.71,239.7,131.40747551]
[1757688423384,0.06,239.71,239.7,263.47747551]
[1757688423589,0.06,239.71,239.7,265.14563657]
[1757688426008,0.2,239.73,239.72,13.59559401]
[1757688426214,0.2,239.73,239.72,259.05274734]
[1757688426393,0.2,239.73,239.72,259.305594]
[1757688427312,0.2,239.73,239.72,263.47712745]
[1757688427702,0.2,239.73,239.72,230.45712745]
[1757688427901,0.2,239.73,239.72,229.78712745]
[1757688428114,0.2,239.73,239.72,262.80712745]
[1757688428709,0.89,239.73,239.72,229.78712745]
[1757688429103,0.2,239.73,239.72,229.78712745]
[1757688429306,0.89,239.73,239.72,229.78712745]
[1757688429499,0.89,239.73,239.72,262.78712745]
[1757688430505,0.2,239.73,239.72,262.78712745]
[1757688430707,0.89,239.73,239.72,262.78712745]
[1757688431017,0.89,239.73,239.72,50.76712746]
[1757688431215,0.2,239.73,239.72,50.76712746]
[1757688432111,0.2,239.73,239.72,51.8542808]
[1757688432512,0.2,239.73,239.72,53.52230274]
[1757688433798,0.89,239.73,239.72,78.4351494]
[1757688434001,0.89,239.73,239.72,157.38712745]
[1757688434620,0.89,239.73,239.72,131.38712745]
[1757688434913,0.89,239.73,239.72,43.76712746]
[1757688435119,0.89,239.73,239.72,50.76712746]
[1757688435320,0.2,239.73,239.72,50.76712746]
[1757688436417,0.2,239.73,239.72,17.76712746]
[1757688436611,0.2,239.73,239.72,51.1842808]
[1757688437239,0.2,239.73,239.72,52.85244186]
[1757688437409,0.2,239.73,239.72,53.52244186]
[1757688439007,0.2,239.73,239.72,134.14244185]
[1757688439210,0.2,239.73,239.72,133.72528851]
[1757688440028,1e-08,239.85,239.79,72.11559401]
[1757688440225,1e-08,239.85,239.84,39.59559401]
[1757688440432,1e-08,239.85,239.84,72.99253863]
[1757688440817,1e-08,239.85,239.84,74.65958733]
[1757688441021,1e-08,239.85,239.84,41.67958733]
[1757688441332,1e-08,239.85,239.84,74.65958733]
[1757688441518,1e-08,239.85,239.84,78.82903362]
[1757688441834,1e-08,239.85,239.84,45.84903362]
[1757688442008,0.69000001,239.85,239.84,78.412089]
[1757688442929,0.69000001,239.85,239.84,45.432089]
[1757688443110,0.69000001,239.85,239.84,78.412089]
[1757688444932,1e-08,239.85,239.84,78.412089]
[1757688446018,0.7,239.87,239.85,80.55999997]
[1757688446219,0.9,239.86,239.85,80.55999997]
[1757688446636,0.2,239.86,239.85,113.53999997]
[1757688447027,0.9,239.86,239.85,117.70927243]
[1757688447429,0.9,239.86,239.85,131.30486644]
[1757688448938,0.9,239.86,239.85,132.97219309]
[1757688450231,0.9,239.86,239.85,128.80292063]
[1757688450448,0.9,239.86,239.85,132.97219309]
[1757688450732,0.9,239.86,239.85,99.99219309]
[1757688450942,0.9,239.86,239.85,132.95219309]
[1757688451317,0.9,239.86,239.85,128.78292063]
[1757688451909,0.9,239.86,239.85,132.95219309]
[1757688452820,0.9,239.86,239.85,82.22732662]
[1757688453124,0.9,239.86,239.85,80.55999997]
[1757688453718,0.9,239.86,239.85,113.51999997]
[1757688453915,0.9,239.86,239.85,32.96]
[1757688456715,0.9,239.86,239.81,26.0]
[1757688456938,0.7,239.85,239.84,26.0]
[1757688457136,0.7,239.85,239.84,58.96]
[1757688458922,0.2,239.86,239.85,13.59559401]
[1757688460344,0.2,239.86,239.85,17.76486647]
[1757688461025,0.2,239.86,239.85,98.66486647]
[1757688461739,0.2,239.86,239.85,99.07486647]
[1757688463939,0.2,239.86,239.85,98.66486647]
[1757688464663,0.2,239.86,239.85,131.60486647]
[1757688466248,0.2,239.86,239.85,98.66486647]
[1757688466553,0.2,239.86,239.85,131.60486647]
[1757688470863,0.2,239.86,239.85,132.01486647]
[1757688472342,0.06,239.91,239.9,26.0]
[1757688473063,0.76,239.91,239.9,26.0]
[1757688473860,0.76,239.91,239.9,58.92]
[1757688475352,0.76,239.91,239.9,26.0]
[1757688475553,8.90324319,239.91,239.87,26.0]
[1757688475755,0.69,239.9,239.88,32.92]
[1757688475946,4.72501344,239.89,239.87,32.92]
[1757688476150,0.69,239.88,239.87,32.92]
[1757688476461,0.69,239.88,239.85,0.03]
[1757688476641,4.66501344,239.88,239.86,32.92]
[1757688476843,0.69,239.87,239.86,32.92]
[1757688480372,0.06,239.89,239.86,32.92]
[1757688480557,0.69,239.88,239.86,32.92]
[1757688480865,0.69,239.87,239.86,32.92]
[1757688483061,0.06,239.89,239.88,26.0]
[1757688483371,0.06,239.89,239.88,32.92]
[1757688483553,0.06,239.89,239.87,13.59559401]
[1757688483747,0.06,239.89,239.88,32.9]
[1757688484570,0.06,239.89,239.87,13.59559401]
[1757688484777,0.75,239.89,239.88,32.9]
[1757688484963,0.75,239.89,239.88,58.9]
[1757688484964,0.06,239.89,239.88,58.9]
[1757688485161,0.06,239.89,239.88,32.9]
[1757688485554,0.75,239.89,239.88,32.9]
[1757688486163,8.8935907,239.89,239.85,80.51]
[1757688486353,0.69,239.88,239.86,32.9]
[1757688487154,0.69,239.88,239.86,37.06904822]
[1757688488955,0.69,239.88,239.86,32.9]
[1757688489373,0.06,239.89,239.86,32.9]
[1757688489677,0.69,239.88,239.86,32.9]
[1757688489861,0.06,239.89,239.86,32.9]
[1757688490052,0.69,239.88,239.86,32.9]
[1757688490249,0.69,239.88,239.86,37.06909378]
[1757688490452,0.69,239.88,239.86,117.54909378]
[1757688490662,0.69,239.88,239.86,113.38]
[1757688490854,0.69,239.88,239.86,117.54909014]
[1757688491369,0.69,239.88,239.86,80.48]
[1757688491573,0.69,239.87,239.86,80.48]
[1757688491780,0.75,239.89,239.86,113.38]
[1757688491965,0.69,239.88,239.86,113.38]
[1757688492356,0.06,239.89,239.86,113.38]
[1757688492759,0.69,239.88,239.86,113.38]
[1757688493358,0.69,239.88,239.86,117.57909749]
[1757688493569,0.69,239.88,239.87,32.9]
[1757688496361,0.69,239.88,239.87,113.38]
[1757688497080,0.69,239.88,239.87,32.9]
[1757688497257,0.06,239.89,239.87,32.9]
[1757688497458,2.54137094,239.88,239.86,0.03]
[1757688497659,4.22857726,239.89,239.86,0.03]
[1757688497859,2.54137094,239.87,239.86,32.91]
[1757688498176,3.23137094,239.87,239.86,32.91]
[1757688499080,0.06,239.89,239.86,37.07907275]
[1757688499386,0.75,239.89,239.86,32.91]
[1757688499971,0.75,239.89,239.86,37.07908395]
[1757688500987,0.75,239.89,239.86,32.91]
[1757688501190,0.75,239.89,239.86,37.07905052]
[1757688501380,0.75,239.89,239.86,32.91]
[1757688501963,0.69,239.88,239.86,37.07900652]
[1757688502288,0.06,239.89,239.86,37.07900652]
[1757688502583,0.75,239.89,239.86,32.91]
[1757688502803,0.69,239.88,239.86,32.91]
[1757688503096,0.06,239.89,239.86,32.91]
[1757688503462,0.69,239.88,239.86,0.03]
[1757688503691,0.69,239.88,239.87,32.88]
[1757688504495,3.23137094,239.88,239.86,0.03]
[1757688504664,2.54137094,239.88,239.87,32.88]
[1757688505282,3.25137094,239.88,239.87,32.88]
[1757688506084,3.25137094,239.88,239.86,0.03]
[1757688506381,3.25137094,239.88,239.86,32.91]
[1757688506589,0.71,239.87,239.86,32.91]
[1757688507093,0.06,239.89,239.86,32.91]
[1757688507468,0.06,239.89,239.88,26.0]
[1757688507760,0.06,239.89,239.88,58.88]
[1757688508167,0.06,239.89,239.88,63.04875104]
[1757688509710,0.06,239.89,239.88,58.88]
[1757688510102,0.06,239.89,239.88,63.04875104]
[1757688510805,0.77,239.89,239.88,32.86]
[1757688511710,0.06,239.89,239.88,32.86]
[1757688511894,0.06,239.89,239.88,32.89]
[1757688512917,0.77,239.89,239.88,32.89]
[1757688513988,0.06,239.89,239.88,32.89]
[1757688514194,0.06,239.89,239.88,37.05875104]
[1757688515726,0.77,239.89,239.88,32.89]
[1757688515892,0.06,239.89,239.88,32.89]
[1757688517725,0.77,239.89,239.88,32.89]
[1757688518100,3.31137094,239.89,239.88,0.03]
[1757688519423,3.31137094,239.89,239.86,0.03]
[1757688519424,7.4799482,239.89,239.86,0.03]
[1757688519604,4.93857726,239.89,239.86,0.03]
[1757688519829,2.54137094,239.87,239.86,0.03]
[1757688520310,3.25137094,239.87,239.86,0.03]
[1757688520610,3.25137094,239.87,239.85,0.03]
[1757688520611,26.0,239.86,239.85,0.03]
[1757688520796,28.54137094,239.86,239.85,0.03]
[1757688520997,29.25137094,239.86,239.85,0.03]
[1757688521211,29.25137094,239.86,239.83,0.03]
[1757688521415,2.54137094,239.84,239.83,0.03]
[1757688521613,6.71081723,239.84,239.83,0.03]
[1757688521810,7.42081723,239.84,239.83,0.03]
[1757688522326,17.58630099,239.84,239.82,0.03]
[1757688522696,26.0,239.81,239.74,22.86]
[1757688522893,28.54137094,239.81,239.71,0.1]
[1757688523199,41.52233672,239.81,239.71,0.1]
[1757688523915,14.59549624,239.8,239.71,0.1]
[1757688524316,2.54137094,239.72,239.71,0.1]
[1757688524707,3.25137094,239.72,239.71,0.1]
[1757688525818,7.42290439,239.72,239.71,0.1]
[1757688530322,7.42290439,239.72,239.71,0.13]
[1757688534024,30.88153345,239.72,239.71,0.13]
[1757688534225,33.42290439,239.72,239.71,0.13]
[1757688535524,26.0,239.69,239.68,0.03]
[1757688535724,38.7068547,239.69,239.67,0.03]
[1757688535903,0.71,239.68,239.66,0.03]
[1757688536103,6.71377466,239.67,239.66,0.03]
[1757688536505,7.42377466,239.67,239.66,0.03]
[1757688536705,39.59559401,239.66,239.58,0.03]
[1757688536919,2.54137094,239.65,239.58,0.03]
[1757688537130,15.31341302,239.67,239.58,0.03]
[1757688537131,4.17240372,239.67,239.58,0.03]
[1757688537403,26.0,239.68,239.63,0.44]
[1757688537625,2.54137094,239.67,239.63,0.44]
[1757688537916,2.54137094,239.67,239.58,0.03]
[1757688537917,2.54137094,239.67,239.61,0.57]
[1757688538306,2.54137094,239.65,239.61,0.13]
[1757688539538,6.71423607,239.65,239.61,0.13]
[1757688540243,4.17286513,239.65,239.61,0.13]
[1757688540440,2.54137094,239.65,239.61,0.13]
[1757688540647,4.17205557,239.69,239.63,0.44]
[1757688540936,2.54137094,239.64,239.61,0.13]
[1757688541313,0.71,239.63,239.61,0.13]
[1757688541734,4.88289062,239.65,239.61,0.13]
[1757688541932,2.54137094,239.63,239.61,0.13]
[1757688542316,4.17222963,239.68,239.61,0.13]
[1757688542517,6.71360057,239.68,239.62,0.47]
[1757688542720,0.71,239.69,239.62,0.47]
[1757688542949,2.54137094,239.68,239.62,0.47]
[1757688543128,3.25137094,239.68,239.62,0.03]
[1757688543321,2.54137094,239.66,239.62,0.03]
[1757688543647,2.54137094,239.64,239.62,0.03]
[1757688544225,0.71,239.67,239.62,0.03]
[1757688544429,2.54137094,239.68,239.62,0.03]
[1757688544745,2.54137094,239.7,239.63,26.44]
[1757688544925,2.54137094,239.7,239.64,0.44]
[1757688545739,2.54137094,239.7,239.65,4.17275192]
[1757688546046,4.88115319,239.75,239.67,26.0]
[1757688546247,0.71,239.76,239.68,0.44]
[1757688546429,2.54137094,239.75,239.68,0.44]
[1757688547343,2.54137094,239.75,239.69,4.17205557]
[1757688547542,2.54137094,239.75,239.71,26.0]
[1757688547949,0.06,239.8,239.72,0.44]
[1757688547950,0.77,239.8,239.72,0.44]
[1757688548125,2.54137094,239.79,239.72,0.44]
[1757688548944,2.54137094,239.79,239.73,4.17135944]
[1757688549125,2.54137094,239.79,239.72,26.44]
[1757688549325,0.06,239.8,239.73,26.44]
[1757688549542,0.06,239.8,239.74,59.28]
[1757688549953,0.06,239.75,239.74,58.84]
[1757688550646,0.06,239.75,239.74,59.28]
[1757688551149,0.06,239.75,239.73,4.17135256]
[1757688551456,0.06,239.75,239.73,37.45135256]
[1757688551629,0.06,239.75,239.72,26.0]
[1757688553749,0.77,239.75,239.7,32.82]
[1757688553951,0.77,239.75,239.71,26.0]
[1757688554151,0.77,239.75,239.72,26.0]
[1757688554531,3.25137094,239.74,239.72,26.0]
[1757688554846,3.25137094,239.74,239.69,4.17205557]
[1757688554847,3.25137094,239.74,239.71,26.0]
[1757688555238,0.06,239.75,239.66,0.44]
[1757688555239,2.54137094,239.72,239.66,0.44]
[1757688555752,2.54137094,239.72,239.66,33.26]
[1757688555955,0.06,239.75,239.7,26.0]
[1757688556132,0.06,239.75,239.71,0.44]
[1757688556334,0.06,239.75,239.71,81.34]
[1757688556534,0.77,239.75,239.71,80.9]
[1757688557453,2.54137094,239.74,239.71,80.9]
[1757688557652,2.54137094,239.74,239.71,85.07161768]
[1757688557958,0.06,239.75,239.71,85.51161768]
[1757688558348,0.06,239.75,239.72,0.44]
[1757688558550,0.06,239.75,239.71,85.07161768]
[1757688559949,4.68542178,239.74,239.71,80.9]
[1757688560458,0.06,239.75,239.71,85.51163322]
[1757688560756,0.06,239.75,239.71,4.17163322]
[1757688561050,0.06,239.75,239.72,0.44]
[1757688561559,0.06,239.75,239.71,4.17163322]
[1757688561874,0.06,239.75,239.74,26.0]
[1757688562051,0.06,239.75,239.73,36.99135944]
[1757688562240,0.06,239.75,239.74,0.44]
[1757688563938,0.06,239.75,239.74,18.20677946]
[1757688567547,0.06,239.75,239.74,125.10677946]
[1757688568368,0.06,239.75,239.74,99.10677946]
[1757688568662,0.06,239.78,239.77,39.59559401]
[1757688568963,0.06,239.78,239.77,153.29559401]
[1757688569137,0.06,239.78,239.77,153.73559401]
[1757688570871,0.06,239.78,239.77,157.90625756]
[1757688572387,0.06,239.8,239.79,13.59559401]
[1757688572564,1e-08,239.8,239.79,46.81262557]
[1757688572744,1e-08,239.8,239.79,47.25262557]
[1757688573161,1e-08,239.8,239.79,51.42294126]
[1757688573565,1e-08,239.8,239.79,132.26294126]
[1757688573768,1e-08,239.8,239.79,131.8459097]
[1757688576580,1e-08,239.8,239.79,133.51337536]
[1757688578078,1e-08,239.8,239.79,138.06280583]
[1757688578682,1e-08,239.8,239.79,138.04280583]
[1757688579484,0.06,239.85,239.84,39.59559401]
[1757688579680,0.06,239.85,239.84,153.155594]
[1757688579986,0.06,239.85,239.84,157.32504029]
[1757688580373,0.06,239.85,239.84,131.32504029]
[1757688580771,0.06,239.85,239.84,262.72504029]
[1757688583271,0.06,239.85,239.84,229.94504029]
[1757688583579,0.06,239.85,239.84,262.70504029]
[1757688583777,0.06,239.85,239.84,264.37222796]
[1757688585384,0.16,239.89,239.88,13.59559401]
[1757688585585,0.16,239.89,239.88,46.35559401]
[1757688585986,0.16,239.89,239.87,80.71999999]
[1757688586187,0.16,239.89,239.88,58.76]
[1757688586883,0.16,239.89,239.88,26.0]
[1757688587565,0.16,239.89,239.88,58.76]
[1757688589475,0.16,239.89,239.88,62.92875104]
[1757688590087,0.16,239.89,239.88,30.16875104]
[1757688590388,0.16,239.89,239.88,58.76]
[1757688590889,0.16,239.89,239.88,62.92875104]
[1757688591587,0.16,239.89,239.88,32.76]
[1757688592271,0.16,239.89,239.87,26.0]
[1757688592474,0.16,239.89,239.88,32.74]
[1757688593882,0.16,239.89,239.88,113.45999999]
[1757688594086,0.16,239.89,239.88,80.71999999]